[Event "Titled Tuesday Blitz April 18 Early 2023"]
[White "Skaric, Djuro"]
[Black "Toncheva, Nadya"]
[WhiteFideId "934569"]
[BlackFideId "2924056"]
[WhiteElo "2282"]
[BlackElo "2101"]
[Result "1-0"]
[Round "09"]
[TimeControl "180+2"]
[Date "2023.04.18"]
[WhiteClock "0:00:19"]
[BlackClock "0:00:03"]

1. g3 {[%clk 0:03:00]}  c5 {[%clk 0:02:58]} 2. Bg2 {[%clk 0:03:00]}  d6 {[%clk 0:02:59]} 3. d3 {[%clk 0:03:01]}  e5 {[%clk 0:02:59]} 4. Nc3 {[%clk 0:03:01]}  g6 {[%clk 0:03:00]} 5. e4 {[%clk 0:03:02]}  Bg7 {[%clk 0:03:00]} 6. f4 {[%clk 0:03:02]}  Ne7 {[%clk 0:03:00]} 7. Nf3 {[%clk 0:03:02]}  Nbc6 {[%clk 0:03:00]} 8. O-O {[%clk 0:03:03]}  O-O {[%clk 0:03:00]} 9. Be3 {[%clk 0:03:02]}  h6 {[%clk 0:02:56]} 10. Qd2 {[%clk 0:03:02]}  Kh7 {[%clk 0:02:56]} 11. h3 {[%clk 0:02:57]}  Be6 {[%clk 0:02:55]} 12. Kh2 {[%clk 0:02:56]}  Nd4 {[%clk 0:02:52]} 13. Rf2 {[%clk 0:02:42]}  Rb8 {[%clk 0:02:39]} 14. a4 {[%clk 0:02:41]}  Qd7 {[%clk 0:02:32]} 15. g4 {[%clk 0:02:31]}  exf4 {[%clk 0:02:28]} 16. Bxf4 {[%clk 0:02:29]}  Nec6 {[%clk 0:02:20]} 17. Raf1 {[%clk 0:02:28]}  a6 {[%clk 0:02:07]} 18. g5 {[%clk 0:02:27]}  h5 {[%clk 0:01:58]} 19. Nh4 {[%clk 0:02:23]}  Ne5 {[%clk 0:01:52]} 20. a5 {[%clk 0:02:12]}  Qd8 {[%clk 0:01:46]} 21. Nd5 {[%clk 0:02:10]}  Bxd5 {[%clk 0:01:42]} 22. exd5 {[%clk 0:02:09]}  Qd7 {[%clk 0:01:31]} 23. Be4 {[%clk 0:02:08]}  Kg8 {[%clk 0:01:27]} 24. Qd1 {[%clk 0:01:43]}  b6 {[%clk 0:01:21]} 25. c3 {[%clk 0:01:41]}  Nb5 {[%clk 0:01:15]} 26. axb6 {[%clk 0:01:39]}  Rxb6 {[%clk 0:01:14]} 27. Qa4 {[%clk 0:01:39]}  Nc7 {[%clk 0:01:04]} 28. Qa2 {[%clk 0:01:34]}  Rfb8 {[%clk 0:01:02]} 29. d4 {[%clk 0:01:28]}  cxd4 {[%clk 0:00:47]} 30. cxd4 {[%clk 0:01:27]}  Ng4+ {[%clk 0:00:45]} 31. hxg4 {[%clk 0:01:27]}  Qxg4 {[%clk 0:00:46]} 32. Ng2 {[%clk 0:01:22]}  Bxd4 {[%clk 0:00:46]} 33. Qc4 {[%clk 0:01:04]}  Bxf2 {[%clk 0:00:42]} 34. Rxf2 {[%clk 0:01:04]}  Rxb2 {[%clk 0:00:12]} 35. Bf3 {[%clk 0:00:40]}  Qd7 {[%clk 0:00:07]} 36. Rxb2 {[%clk 0:00:36]}  Rxb2 {[%clk 0:00:08]} 37. Qd4 {[%clk 0:00:36]}  Nb5 {[%clk 0:00:07]} 38. Qxb2 {[%clk 0:00:35]}  Qf5 {[%clk 0:00:05]} 39. Qf6 {[%clk 0:00:35]}  Qd3 {[%clk 0:00:05]} 40. Bc1 {[%clk 0:00:31]}  Qc2 {[%clk 0:00:05]} 41. Bb2 {[%clk 0:00:31]}  Kf8 {[%clk 0:00:04]} 42. Kg3 {[%clk 0:00:29]}  h4+ {[%clk 0:00:04]} 43. Nxh4 {[%clk 0:00:29]}  a5 {[%clk 0:00:03]} 44. Qd8# {[%clk 0:00:19]} 1-0


[Site "https://www.chess.com"]

[Event "Titled Tuesday Blitz April 18 Early 2023"]
[White "Chernov, Mikhail"]
[Black "micke12a"]
[WhiteFideId "24143170"]
[WhiteElo "2113"]
[BlackElo "2350"]
[Result "0-1"]
[Round "09"]
[TimeControl "180+2"]
[Date "2023.04.18"]
[WhiteClock "0:00:01"]
[BlackClock "0:00:04"]

1. d4 {[%clk 0:03:00]}  d5 {[%clk 0:02:56]} 2. Nc3 {[%clk 0:03:00]}  Nf6 {[%clk 0:02:52]} 3. Bf4 {[%clk 0:03:01]}  e6 {[%clk 0:02:52]} 4. e3 {[%clk 0:03:01]}  a6 {[%clk 0:02:51]} 5. g4 {[%clk 0:03:01]}  c5 {[%clk 0:02:47]} 6. g5 {[%clk 0:02:55]}  Nfd7 {[%clk 0:02:48]} 7. h4 {[%clk 0:02:54]}  Nc6 {[%clk 0:02:47]} 8. Nf3 {[%clk 0:02:43]}  b5 {[%clk 0:02:47]} 9. h5 {[%clk 0:02:41]}  Nb6 {[%clk 0:02:15]} 10. Ne2 {[%clk 0:02:23]}  Bd6 {[%clk 0:02:12]} 11. c3 {[%clk 0:02:12]}  Bb7 {[%clk 0:02:11]} 12. Bh3 {[%clk 0:02:10]}  Qe7 {[%clk 0:02:06]} 13. dxc5 {[%clk 0:01:41]}  Bxc5 {[%clk 0:02:05]} 14. Ned4 {[%clk 0:01:42]}  Nxd4 {[%clk 0:02:00]} 15. exd4 {[%clk 0:01:40]}  Bd6 {[%clk 0:01:59]} 16. Qd2 {[%clk 0:01:40]}  Nc4 {[%clk 0:01:58]} 17. Qc1 {[%clk 0:01:40]}  Bxf4 {[%clk 0:01:51]} 18. Qxf4 {[%clk 0:01:41]}  Nxb2 {[%clk 0:01:51]} 19. O-O {[%clk 0:01:40]}  Na4 {[%clk 0:01:45]} 20. Rac1 {[%clk 0:01:34]}  O-O {[%clk 0:01:44]} 21. h6 {[%clk 0:01:32]}  f6 {[%clk 0:01:34]} 22. hxg7 {[%clk 0:01:33]}  Kxg7 {[%clk 0:01:31]} 23. Rfe1 {[%clk 0:01:26]}  fxg5 {[%clk 0:01:28]} 24. Qxg5+ {[%clk 0:01:27]}  Qxg5+ {[%clk 0:01:28]} 25. Nxg5 {[%clk 0:01:28]}  Rfc8 {[%clk 0:01:13]} 26. Rxe6 {[%clk 0:01:20]}  Rc7 {[%clk 0:01:05]} 27. Re3 {[%clk 0:01:05]}  Kg6 {[%clk 0:00:54]} 28. f4 {[%clk 0:01:02]}  Bc8 {[%clk 0:00:45]} 29. Bg2 {[%clk 0:00:58]}  Bb7 {[%clk 0:00:39]} 30. Bf1 {[%clk 0:00:35]}  Kf5 {[%clk 0:00:24]} 31. Ne6 {[%clk 0:00:30]}  Rg8+ {[%clk 0:00:23]} 32. Kf2 {[%clk 0:00:28]}  Re7 {[%clk 0:00:20]} 33. Bh3+ {[%clk 0:00:15]}  Kf6 {[%clk 0:00:20]} 34. Rce1 {[%clk 0:00:14]}  Bc8 {[%clk 0:00:19]} 35. Ng5 {[%clk 0:00:11]}  Rxe3 {[%clk 0:00:19]} 36. Rxe3 {[%clk 0:00:12]}  Bxh3 {[%clk 0:00:19]} 37. Nxh3 {[%clk 0:00:11]}  Rc8 {[%clk 0:00:19]} 38. Ng5 {[%clk 0:00:09]}  h6 {[%clk 0:00:19]} 39. Nf3 {[%clk 0:00:08]}  Rxc3 {[%clk 0:00:19]} 40. Re8 {[%clk 0:00:09]}  Rc2+ {[%clk 0:00:19]} 41. Kg3 {[%clk 0:00:09]}  Rxa2 {[%clk 0:00:18]} 42. Ra8 {[%clk 0:00:10]}  Nc3 {[%clk 0:00:18]} 43. Ne5 {[%clk 0:00:08]}  b4 {[%clk 0:00:18]} 44. Rb8 {[%clk 0:00:08]}  a5 {[%clk 0:00:17]} 45. Kg4 {[%clk 0:00:09]}  Ne4 {[%clk 0:00:17]} 46. Rb6+ {[%clk 0:00:09]}  Ke7 {[%clk 0:00:16]} 47. f5 {[%clk 0:00:09]}  Rg2+ {[%clk 0:00:15]} 48. Kf4 {[%clk 0:00:08]}  Rf2+ {[%clk 0:00:15]} 49. Ke3 {[%clk 0:00:07]}  Rxf5 {[%clk 0:00:15]} 50. Rxh6 {[%clk 0:00:06]}  Rf1 {[%clk 0:00:13]} 51. Ra6 {[%clk 0:00:06]}  Re1+ {[%clk 0:00:13]} 52. Kd3 {[%clk 0:00:05]}  Ra1 {[%clk 0:00:13]} 53. Nc6+ {[%clk 0:00:05]}  Kd7 {[%clk 0:00:13]} 54. Nxa5 {[%clk 0:00:05]}  b3 {[%clk 0:00:12]} 55. Ra7+ {[%clk 0:00:03]}  Kc8 {[%clk 0:00:12]} 56. Ra8+ {[%clk 0:00:03]}  Kc7 {[%clk 0:00:13]} 57. Ra7+ {[%clk 0:00:04]}  Kb6 {[%clk 0:00:12]} 58. Rb7+ {[%clk 0:00:04]}  Ka6 {[%clk 0:00:11]} 59. Rxb3 {[%clk 0:00:05]}  Rxa5 {[%clk 0:00:10]} 60. Rb8 {[%clk 0:00:06]}  Ra3+ {[%clk 0:00:11]} 61. Kc2 {[%clk 0:00:06]}  Rc3+ {[%clk 0:00:10]} 62. Kb2 {[%clk 0:00:06]}  Rc6 {[%clk 0:00:10]} 63. Rd8 {[%clk 0:00:06]}  Rd6 {[%clk 0:00:10]} 64. Re8 {[%clk 0:00:06]}  Kb6 {[%clk 0:00:10]} 65. Kb3 {[%clk 0:00:07]}  Kb5 {[%clk 0:00:11]} 66. Rb8+ {[%clk 0:00:07]}  Rb6 {[%clk 0:00:12]} 67. Rd8 {[%clk 0:00:07]}  Kc6+ {[%clk 0:00:12]} 68. Kc2 {[%clk 0:00:06]}  Nd6 {[%clk 0:00:12]} 69. Kd3 {[%clk 0:00:05]}  Rb3+ {[%clk 0:00:12]} 70. Kc2 {[%clk 0:00:05]}  Rh3 {[%clk 0:00:13]} 71. Rg8 {[%clk 0:00:04]}  Nb5 {[%clk 0:00:13]} 72. Rg6+ {[%clk 0:00:04]}  Kb7 {[%clk 0:00:13]} 73. Rg7+ {[%clk 0:00:05]}  Kb6 {[%clk 0:00:13]} 74. Rg6+ {[%clk 0:00:06]}  Ka5 {[%clk 0:00:14]} 75. Rg5 {[%clk 0:00:05]}  Nxd4+ {[%clk 0:00:05]} 76. Kb2 {[%clk 0:00:05]}  Rh2+ {[%clk 0:00:02]} 77. Kb1 {[%clk 0:00:05]}  Rh1+ {[%clk 0:00:01]} 78. Kb2 {[%clk 0:00:05]}  Rh2+ {[%clk 0:00:02]} 79. Kb1 {[%clk 0:00:04]}  Nb5 {[%clk 0:00:03]} 80. Rxd5 {[%clk 0:00:04]}  Kb4 {[%clk 0:00:03]} 81. Rg5 {[%clk 0:00:05]}  Nc3+ {[%clk 0:00:03]} 82. Kc1 {[%clk 0:00:01]}  Kb3 {[%clk 0:00:04]} 0-1


[Site "https://www.chess.com"]

[Event "Titled Tuesday Blitz April 18 Early 2023"]
[White "Dixit, Nikhil"]
[Black "Kyaw Lay Htaik"]
[WhiteFideId "5059534"]
[BlackFideId "13002007"]
[WhiteElo "2207"]
[BlackElo "2261"]
[Result "0-1"]
[Round "09"]
[TimeControl "180+2"]
[Date "2023.04.18"]
[WhiteClock "0:00:06"]
[BlackClock "0:00:16"]

1. e4 {[%clk 0:03:00]}  c5 {[%clk 0:02:58]} 2. Nf3 {[%clk 0:03:01]}  Nc6 {[%clk 0:02:59]} 3. Bb5 {[%clk 0:03:00]}  g6 {[%clk 0:02:58]} 4. Bxc6 {[%clk 0:03:00]}  bxc6 {[%clk 0:02:58]} 5. O-O {[%clk 0:03:01]}  Bg7 {[%clk 0:02:58]} 6. d3 {[%clk 0:03:00]}  d6 {[%clk 0:02:57]} 7. Nbd2 {[%clk 0:02:59]}  Nh6 {[%clk 0:02:55]} 8. Nc4 {[%clk 0:02:59]}  O-O {[%clk 0:02:54]} 9. h3 {[%clk 0:02:58]}  f6 {[%clk 0:02:51]} 10. Rb1 {[%clk 0:02:56]}  Nf7 {[%clk 0:02:47]} 11. b3 {[%clk 0:02:42]}  Be6 {[%clk 0:02:44]} 12. a4 {[%clk 0:02:42]}  Ne5 {[%clk 0:02:43]} 13. Ncxe5 {[%clk 0:02:40]}  fxe5 {[%clk 0:02:40]} 14. Ng5 {[%clk 0:02:39]}  Bd7 {[%clk 0:02:38]} 15. Be3 {[%clk 0:02:33]}  h6 {[%clk 0:02:37]} 16. Nf3 {[%clk 0:02:34]}  Qe8 {[%clk 0:02:24]} 17. Nd2 {[%clk 0:02:30]}  g5 {[%clk 0:02:23]} 18. g4 {[%clk 0:02:19]}  Qg6 {[%clk 0:02:16]} 19. Re1 {[%clk 0:02:04]}  Rf7 {[%clk 0:02:14]} 20. Nf1 {[%clk 0:02:03]}  Raf8 {[%clk 0:01:57]} 21. Ng3 {[%clk 0:02:03]}  Rf3 {[%clk 0:01:48]} 22. Kg2 {[%clk 0:01:59]}  R3f7 {[%clk 0:01:43]} 23. Nf5 {[%clk 0:01:58]}  h5 {[%clk 0:01:39]} 24. gxh5 {[%clk 0:01:31]}  Qf6 {[%clk 0:01:39]} 25. Qg4 {[%clk 0:01:12]}  Bxf5 {[%clk 0:01:37]} 26. exf5 {[%clk 0:01:09]}  Qxf5 {[%clk 0:01:36]} 27. Qxf5 {[%clk 0:01:05]}  Rxf5 {[%clk 0:01:35]} 28. b4 {[%clk 0:01:06]}  cxb4 {[%clk 0:01:28]} 29. Rxb4 {[%clk 0:01:04]}  Kf7 {[%clk 0:01:20]} 30. Rb7 {[%clk 0:01:02]}  a5 {[%clk 0:01:18]} 31. Reb1 {[%clk 0:00:55]}  d5 {[%clk 0:01:14]} 32. Ra7 {[%clk 0:00:40]}  d4 {[%clk 0:01:13]} 33. Bd2 {[%clk 0:00:32]}  Ke6 {[%clk 0:01:12]} 34. Be1 {[%clk 0:00:32]}  e4 {[%clk 0:01:06]} 35. dxe4 {[%clk 0:00:31]}  Rc5 {[%clk 0:01:05]} 36. Rxa5 {[%clk 0:00:30]}  Rxc2 {[%clk 0:01:03]} 37. Rxg5 {[%clk 0:00:29]}  Be5 {[%clk 0:00:59]} 38. Rg6+ {[%clk 0:00:29]}  Bf6 {[%clk 0:00:52]} 39. a5 {[%clk 0:00:27]}  Ra2 {[%clk 0:00:51]} 40. Rb6 {[%clk 0:00:20]}  d3 {[%clk 0:00:42]} 41. Rxc6+ {[%clk 0:00:19]}  Kd7 {[%clk 0:00:41]} 42. Rc5 {[%clk 0:00:19]}  e6 {[%clk 0:00:33]} 43. h6 {[%clk 0:00:19]}  d2 {[%clk 0:00:31]} 44. Bxd2 {[%clk 0:00:20]}  Rxd2 {[%clk 0:00:30]} 45. h7 {[%clk 0:00:14]}  Bd4 {[%clk 0:00:30]} 46. Rb5 {[%clk 0:00:10]}  Rfxf2+ {[%clk 0:00:29]} 47. Kg3 {[%clk 0:00:10]}  Rg2+ {[%clk 0:00:27]} 48. Kh4 {[%clk 0:00:10]}  Rxg6 {[%clk 0:00:27]} 49. Rb7+ {[%clk 0:00:10]}  Kc6 {[%clk 0:00:26]} 50. Kh5 {[%clk 0:00:11]}  Rdg2 {[%clk 0:00:25]} 51. h4 {[%clk 0:00:10]}  R6g3 {[%clk 0:00:21]} 52. Rf7 {[%clk 0:00:07]}  Ra3 {[%clk 0:00:20]} 53. a6 {[%clk 0:00:08]}  Rxa6 {[%clk 0:00:20]} 54. e5 {[%clk 0:00:08]}  Bxe5 {[%clk 0:00:19]} 55. Re7 {[%clk 0:00:09]}  Ra5 {[%clk 0:00:18]} 56. Rxe6+ {[%clk 0:00:07]}  Kd7 {[%clk 0:00:17]} 57. Rg6 {[%clk 0:00:05]}  Bg7+ {[%clk 0:00:17]} 58. Rg5 {[%clk 0:00:06]}  Raxg5+ {[%clk 0:00:17]} 59. hxg5 {[%clk 0:00:06]}  Ke6 {[%clk 0:00:18]} 60. Kg6 {[%clk 0:00:07]}  Bh8 {[%clk 0:00:17]} 61. Kh5 {[%clk 0:00:07]}  Kf5 {[%clk 0:00:17]} 62. Kh4 {[%clk 0:00:07]}  Rxg5 {[%clk 0:00:17]} 63. Kh3 {[%clk 0:00:07]}  Kf4 {[%clk 0:00:17]} 64. Kh4 {[%clk 0:00:07]}  Bf6 {[%clk 0:00:16]} 65. Kh3 {[%clk 0:00:07]}  Kf3 {[%clk 0:00:16]} 66. Kh4 {[%clk 0:00:06]}  Rf5+ {[%clk 0:00:16]} 67. Kh3 {[%clk 0:00:06]}  Rh5# {[%clk 0:00:16]} 0-1


[Site "https://www.chess.com"]

[Event "Titled Tuesday Blitz April 18 Early 2023"]
[White "Weetik, Vjacheslav"]
[Black "Kielinkei"]
[WhiteFideId "4153472"]
[WhiteElo "2469"]
[BlackElo "2450"]
[Result "1-0"]
[Round "09"]
[TimeControl "180+2"]
[Date "2023.04.18"]
[WhiteClock "0:00:27"]
[BlackClock "0:00:18"]

1. d4 {[%clk 0:02:59]}  d5 {[%clk 0:02:58]} 2. Bf4 {[%clk 0:02:58]}  c5 {[%clk 0:02:59]} 3. e3 {[%clk 0:02:58]}  Nc6 {[%clk 0:02:59]} 4. c3 {[%clk 0:02:58]}  Qb6 {[%clk 0:02:58]} 5. Qb3 {[%clk 0:02:58]}  c4 {[%clk 0:02:54]} 6. Qc2 {[%clk 0:02:58]}  Nf6 {[%clk 0:02:47]} 7. Nd2 {[%clk 0:02:57]}  g6 {[%clk 0:02:43]} 8. e4 {[%clk 0:02:54]}  Nxe4 {[%clk 0:02:39]} 9. Nxe4 {[%clk 0:02:54]}  dxe4 {[%clk 0:02:39]} 10. Bxc4 {[%clk 0:02:55]}  Bf5 {[%clk 0:02:34]} 11. Qb3 {[%clk 0:02:55]}  Qxb3 {[%clk 0:02:25]} 12. axb3 {[%clk 0:02:54]}  Bg7 {[%clk 0:02:16]} 13. Be3 {[%clk 0:02:50]}  e6 {[%clk 0:01:55]} 14. Ne2 {[%clk 0:02:43]}  h5 {[%clk 0:01:52]} 15. b4 {[%clk 0:02:33]}  Kd7 {[%clk 0:01:38]} 16. O-O {[%clk 0:02:30]}  Ne7 {[%clk 0:01:34]} 17. Ra5 {[%clk 0:02:06]}  b6 {[%clk 0:01:28]} 18. Ra6 {[%clk 0:02:03]}  Kc7 {[%clk 0:01:18]} 19. Rfa1 {[%clk 0:02:00]}  Kb7 {[%clk 0:01:18]} 20. R6a3 {[%clk 0:01:50]}  Nd5 {[%clk 0:01:17]} 21. Bd2 {[%clk 0:01:37]}  Bh6 {[%clk 0:01:10]} 22. Bxh6 {[%clk 0:01:33]}  Rxh6 {[%clk 0:01:11]} 23. Ba6+ {[%clk 0:01:27]}  Kc7 {[%clk 0:01:10]} 24. Bc4 {[%clk 0:01:27]}  Kb7 {[%clk 0:01:09]} 25. h4 {[%clk 0:01:10]}  Rhh8 {[%clk 0:01:03]} 26. Ba6+ {[%clk 0:01:08]}  Kc7 {[%clk 0:01:03]} 27. Bc4 {[%clk 0:01:09]}  Kb7 {[%clk 0:01:04]} 28. Ng3 {[%clk 0:01:07]}  Rhe8 {[%clk 0:00:46]} 29. Ba6+ {[%clk 0:01:05]}  Kc7 {[%clk 0:00:46]} 30. Bb5 {[%clk 0:01:05]}  Reb8 {[%clk 0:00:37]} 31. Rxa7+ {[%clk 0:01:04]}  Rxa7 {[%clk 0:00:38]} 32. Rxa7+ {[%clk 0:01:04]}  Rb7 {[%clk 0:00:38]} 33. Rxb7+ {[%clk 0:00:54]}  Kxb7 {[%clk 0:00:39]} 34. Be8 {[%clk 0:00:54]}  e3 {[%clk 0:00:35]} 35. Bxf7 {[%clk 0:00:45]}  exf2+ {[%clk 0:00:27]} 36. Kxf2 {[%clk 0:00:45]}  Nf4 {[%clk 0:00:27]} 37. Nxf5 {[%clk 0:00:43]}  exf5 {[%clk 0:00:24]} 38. Kf3 {[%clk 0:00:40]}  Nd3 {[%clk 0:00:21]} 39. Bxg6 {[%clk 0:00:34]}  Nxb2 {[%clk 0:00:21]} 40. Bxh5 {[%clk 0:00:31]}  Na4 {[%clk 0:00:19]} 41. c4 {[%clk 0:00:30]}  Nb2 {[%clk 0:00:17]} 42. c5 {[%clk 0:00:29]}  b5 {[%clk 0:00:18]} 43. Be8 {[%clk 0:00:27]} 1-0


[Site "https://www.chess.com"]

[Event "Titled Tuesday Blitz April 18 Early 2023"]
[White "koncheto"]
[Black "Fernandez Siles, Luis"]
[BlackFideId "2209420"]
[WhiteElo "2530"]
[BlackElo "2195"]
[Result "1-0"]
[Round "09"]
[TimeControl "180+2"]
[Date "2023.04.18"]
[WhiteClock "0:00:08"]
[BlackClock "0:00:04"]

1. e4 {[%clk 0:03:00]}  c5 {[%clk 0:02:59]} 2. Nf3 {[%clk 0:02:57]}  Nc6 {[%clk 0:02:59]} 3. d4 {[%clk 0:02:58]}  cxd4 {[%clk 0:03:00]} 4. Nxd4 {[%clk 0:02:59]}  Nf6 {[%clk 0:03:00]} 5. Nc3 {[%clk 0:02:59]}  e5 {[%clk 0:03:01]} 6. Ndb5 {[%clk 0:02:59]}  d6 {[%clk 0:03:02]} 7. Bg5 {[%clk 0:02:59]}  a6 {[%clk 0:03:02]} 8. Na3 {[%clk 0:02:58]}  b5 {[%clk 0:03:03]} 9. Nd5 {[%clk 0:02:59]}  Be7 {[%clk 0:03:03]} 10. Bxf6 {[%clk 0:02:59]}  Bxf6 {[%clk 0:03:04]} 11. c3 {[%clk 0:03:00]}  O-O {[%clk 0:03:03]} 12. Be2 {[%clk 0:02:56]}  Bg5 {[%clk 0:03:00]} 13. O-O {[%clk 0:02:56]}  Rb8 {[%clk 0:02:51]} 14. Nc2 {[%clk 0:02:56]}  Be6 {[%clk 0:02:49]} 15. Nce3 {[%clk 0:02:56]}  Ne7 {[%clk 0:02:48]} 16. Qd3 {[%clk 0:02:51]}  Bxe3 {[%clk 0:02:24]} 17. Nxe3 {[%clk 0:02:52]}  d5 {[%clk 0:02:24]} 18. exd5 {[%clk 0:02:51]}  Nxd5 {[%clk 0:02:21]} 19. Rad1 {[%clk 0:02:48]}  Nf4 {[%clk 0:02:16]} 20. Qc2 {[%clk 0:02:48]}  Qg5 {[%clk 0:02:03]} 21. Bf3 {[%clk 0:02:47]}  f5 {[%clk 0:01:58]} 22. g3 {[%clk 0:02:44]}  Nh3+ {[%clk 0:01:54]} 23. Kg2 {[%clk 0:02:32]}  e4 {[%clk 0:01:49]} 24. Bxe4 {[%clk 0:02:13]}  fxe4 {[%clk 0:01:38]} 25. Qxe4 {[%clk 0:02:14]}  Bc8 {[%clk 0:01:12]} 26. f4 {[%clk 0:01:55]}  Qh5 {[%clk 0:00:59]} 27. Nd5 {[%clk 0:01:03]}  Kh8 {[%clk 0:00:48]} 28. Qe5 {[%clk 0:00:43]}  Qxe5 {[%clk 0:00:38]} 29. fxe5 {[%clk 0:00:44]}  Rxf1 {[%clk 0:00:28]} 30. Kxf1 {[%clk 0:00:45]}  Bb7 {[%clk 0:00:25]} 31. e6 {[%clk 0:00:39]}  Re8 {[%clk 0:00:20]} 32. Nc7 {[%clk 0:00:30]}  Rf8+ {[%clk 0:00:19]} 33. Ke2 {[%clk 0:00:28]}  Ng5 {[%clk 0:00:19]} 34. e7 {[%clk 0:00:28]}  Bf3+ {[%clk 0:00:19]} 35. Ke3 {[%clk 0:00:24]}  Re8 {[%clk 0:00:15]} 36. Nxe8 {[%clk 0:00:14]}  Bxd1 {[%clk 0:00:15]} 37. Nxg7 {[%clk 0:00:14]}  Kxg7 {[%clk 0:00:09]} 38. e8=Q {[%clk 0:00:15]}  Bg4 {[%clk 0:00:08]} 39. Qe7+ {[%clk 0:00:13]}  Nf7 {[%clk 0:00:08]} 40. Kf4 {[%clk 0:00:12]}  h5 {[%clk 0:00:08]} 41. Qa7 {[%clk 0:00:10]}  Bc8 {[%clk 0:00:07]} 42. Qa8 {[%clk 0:00:10]}  Be6 {[%clk 0:00:04]} 43. Qxa6 {[%clk 0:00:10]}  Kf6 {[%clk 0:00:04]} 44. Qxb5 {[%clk 0:00:08]} 1-0


[Site "https://www.chess.com"]

[Event "Titled Tuesday Blitz April 18 Early 2023"]
[White "Erzhanov, Arman"]
[Black "Prudnykova, Olga"]
[WhiteFideId "4138821"]
[BlackFideId "14121093"]
[WhiteElo "2138"]
[BlackElo "2113"]
[Result "1-0"]
[Round "09"]
[TimeControl "180+2"]
[Date "2023.04.18"]
[WhiteClock "0:00:49"]
[BlackClock "0:00:07"]

1. e4 {[%clk 0:03:00]}  c5 {[%clk 0:02:59]} 2. Nf3 {[%clk 0:02:51]}  Nf6 {[%clk 0:02:59]} 3. e5 {[%clk 0:02:49]}  Nd5 {[%clk 0:02:58]} 4. Nc3 {[%clk 0:02:49]}  e6 {[%clk 0:02:58]} 5. Ne4 {[%clk 0:02:42]}  f5 {[%clk 0:02:58]} 6. Nc3 {[%clk 0:02:41]}  Nb4 {[%clk 0:02:56]} 7. d3 {[%clk 0:02:37]}  N4c6 {[%clk 0:02:34]} 8. Bf4 {[%clk 0:02:35]}  Be7 {[%clk 0:02:32]} 9. h4 {[%clk 0:02:36]}  Nd4 {[%clk 0:02:26]} 10. g3 {[%clk 0:02:33]}  Nbc6 {[%clk 0:02:21]} 11. Bg2 {[%clk 0:02:32]}  Nxf3+ {[%clk 0:02:12]} 12. Qxf3 {[%clk 0:02:32]}  Nd4 {[%clk 0:02:10]} 13. Qh5+ {[%clk 0:02:32]}  g6 {[%clk 0:02:09]} 14. Qd1 {[%clk 0:02:33]}  Rb8 {[%clk 0:01:54]} 15. Ne2 {[%clk 0:02:26]}  Nc6 {[%clk 0:01:51]} 16. Ng1 {[%clk 0:02:26]}  Qc7 {[%clk 0:01:48]} 17. Nf3 {[%clk 0:02:26]}  h6 {[%clk 0:01:46]} 18. Qd2 {[%clk 0:02:25]}  Bf8 {[%clk 0:01:45]} 19. O-O-O {[%clk 0:02:23]}  b5 {[%clk 0:01:45]} 20. Rhe1 {[%clk 0:02:17]}  b4 {[%clk 0:01:31]} 21. d4 {[%clk 0:02:16]}  Qa5 {[%clk 0:01:17]} 22. Kb1 {[%clk 0:02:16]}  Nxd4 {[%clk 0:01:04]} 23. Nxd4 {[%clk 0:02:15]}  cxd4 {[%clk 0:01:05]} 24. Qxd4 {[%clk 0:02:15]}  Rb6 {[%clk 0:00:58]} 25. Re2 {[%clk 0:02:03]}  Ra6 {[%clk 0:00:57]} 26. Qc4 {[%clk 0:02:02]}  Kd8 {[%clk 0:00:47]} 27. Red2 {[%clk 0:02:01]}  Rh7 {[%clk 0:00:46]} 28. Rd4 {[%clk 0:01:38]}  Qc7 {[%clk 0:00:45]} 29. Qb5 {[%clk 0:01:24]}  Qa5 {[%clk 0:00:38]} 30. Qc4 {[%clk 0:01:18]}  Qc7 {[%clk 0:00:38]} 31. Qd3 {[%clk 0:01:12]}  Qa5 {[%clk 0:00:34]} 32. Qb3 {[%clk 0:01:08]}  Bc5 {[%clk 0:00:27]} 33. R4d2 {[%clk 0:01:04]}  Ke8 {[%clk 0:00:22]} 34. Bf1 {[%clk 0:01:04]}  Rc6 {[%clk 0:00:21]} 35. Be3 {[%clk 0:00:59]}  Be7 {[%clk 0:00:18]} 36. f4 {[%clk 0:00:57]}  Rh8 {[%clk 0:00:17]} 37. Rd4 {[%clk 0:00:57]}  Kf7 {[%clk 0:00:17]} 38. Bd2 {[%clk 0:00:58]}  Rb6 {[%clk 0:00:15]} 39. a3 {[%clk 0:00:57]}  Qc5 {[%clk 0:00:09]} 40. Bxb4 {[%clk 0:00:58]}  Qc6 {[%clk 0:00:09]} 41. Rc4 {[%clk 0:00:52]}  Qe4 {[%clk 0:00:07]} 42. Rxe4 {[%clk 0:00:49]} 1-0


[Site "https://www.chess.com"]

[Event "Titled Tuesday Blitz April 18 Early 2023"]
[White "Baches Garcia, Guillermo"]
[Black "Tyagi, Kushan"]
[WhiteFideId "2209764"]
[BlackFideId "2040069"]
[WhiteElo "2463"]
[BlackElo "2297"]
[Result "1-0"]
[Round "09"]
[TimeControl "180+2"]
[Date "2023.04.18"]
[WhiteClock "0:01:07"]
[BlackClock "0:00:28"]

1. e4 {[%clk 0:03:00]}  c5 {[%clk 0:02:59]} 2. Nf3 {[%clk 0:03:01]}  e6 {[%clk 0:02:58]} 3. d4 {[%clk 0:03:01]}  cxd4 {[%clk 0:02:59]} 4. Nxd4 {[%clk 0:03:01]}  a6 {[%clk 0:02:59]} 5. c4 {[%clk 0:03:01]}  Nf6 {[%clk 0:02:58]} 6. Nc3 {[%clk 0:03:00]}  Qc7 {[%clk 0:02:57]} 7. a3 {[%clk 0:03:00]}  b6 {[%clk 0:02:55]} 8. Be3 {[%clk 0:03:00]}  Bb7 {[%clk 0:02:55]} 9. f3 {[%clk 0:03:00]}  d6 {[%clk 0:02:56]} 10. Be2 {[%clk 0:03:01]}  Nbd7 {[%clk 0:02:57]} 11. O-O {[%clk 0:03:01]}  Be7 {[%clk 0:02:57]} 12. a4 {[%clk 0:03:01]}  O-O {[%clk 0:02:57]} 13. a5 {[%clk 0:03:01]}  bxa5 {[%clk 0:02:46]} 14. Nb3 {[%clk 0:03:02]}  Rac8 {[%clk 0:02:37]} 15. Nxa5 {[%clk 0:03:00]}  Ba8 {[%clk 0:02:37]} 16. Qd2 {[%clk 0:02:52]}  Rb8 {[%clk 0:02:35]} 17. Rfc1 {[%clk 0:02:48]}  Nc5 {[%clk 0:02:32]} 18. b4 {[%clk 0:02:41]}  Ncd7 {[%clk 0:02:11]} 19. Na4 {[%clk 0:02:34]}  Rfc8 {[%clk 0:01:52]} 20. Rab1 {[%clk 0:02:24]}  Bc6 {[%clk 0:01:41]} 21. Nc3 {[%clk 0:02:05]}  Nb6 {[%clk 0:01:29]} 22. Nd5 {[%clk 0:01:57]}  Bxd5 {[%clk 0:01:02]} 23. cxd5 {[%clk 0:01:55]}  Qd7 {[%clk 0:01:00]} 24. Nc6 {[%clk 0:01:49]}  Bd8 {[%clk 0:00:44]} 25. Bxa6 {[%clk 0:01:41]}  Ra8 {[%clk 0:00:33]} 26. Bxc8 {[%clk 0:01:31]}  Rxc8 {[%clk 0:00:31]} 27. Nxd8 {[%clk 0:01:29]}  Qxd8 {[%clk 0:00:29]} 28. Rxc8 {[%clk 0:01:22]}  Nxc8 {[%clk 0:00:30]} 29. dxe6 {[%clk 0:01:17]}  fxe6 {[%clk 0:00:31]} 30. b5 {[%clk 0:01:16]}  Nb6 {[%clk 0:00:31]} 31. Qf2 {[%clk 0:01:14]}  Nc4 {[%clk 0:00:30]} 32. b6 {[%clk 0:01:13]}  Nd7 {[%clk 0:00:30]} 33. b7 {[%clk 0:01:11]}  Nb8 {[%clk 0:00:28]} 34. Ba7 {[%clk 0:01:07]} 1-0


[Site "https://www.chess.com"]